Cogmind - Beta 15 @@@ ROGUE MODE // 2025.10.10 @ 09:57:44 Player: rapskalian Result: Destroyed by D-53 Grenadier with Mini Grenade Launcher Performance ------------- Evolutions (2) 1000 Regions Visited (5) 1000 Robots Destroyed (72) 360 Value Destroyed (2022) 2022 Prototype IDs (5) 100 Alien Tech Used (0) 0 Bonus (228) 228 TOTAL SCORE: 4710 Bonus ------- Follower Combat Kills 228 Cogmind --------- Core Integrity 0/550 Matter 300/300 Energy 100/100 System Corruption 4% Temperature Cool (0) Movement Core (350) Ox6 Location -8/Storage Parts ------- > --- POWER (1) -------- (None) > --- PROPULSION (4) --- (None) > --- UTILITY (3) ------ Large Storage Unit > --- WEAPON (3) ------- (None) > --- INVENTORY (15) --- Light Nuclear Core Medium Matter Pod (100) Improved Sensor Array Insulated Plating System Shield Drone Bay (2/2) Drone Bay (2/2) Heavy Assault Rifle Flak Cannon Advanced EMP Blaster Improved Datajack Peak State ------------ > --- POWER ------------ Light Nuclear Core > --- PROPULSION ------- Light Treads Light Treads Advanced Treads Advanced Treads > --- UTILITY ---------- Improved Heat Sink Large Storage Unit Hardened Light Armor Plating > --- WEAPON ----------- Particle Gun Heavy Assault Rifle Advanced EMP Blaster > --- INVENTORY -------- Light Nuclear Core Light Nuclear Core Light Treads Compact Wheel Medium Matter Pod Improved Sensor Array Hardened Light Armor Plating Insulated Plating System Shield Drone Bay Drone Bay Heavy Assault Rifle Flak Cannon Advanced EMP Blaster Improved Datajack [Rating: 29] Favorites ----------- Power Light Nuclear Core Engine Improved Ion Engine Power Core Light Nuclear Core Propulsion Advanced Treads Treads Advanced Treads Leg Aluminum Leg Wheel Compact Wheel Utility Large Storage Unit Device Heat Sink Storage Large Storage Unit Protection Insulated Plating Weapon Ion Cannon Energy Gun Particle Gun Energy Cannon Ion Cannon Ballistic Gun Assault Rifle Ballistic Cannon Flak Cannon Launcher Mini Grenade Launcher Special Melee Weapon Improved Datajack Build | -11 -10 -10 -9 -8 -8 ------- Run | Yrd Mat Min Mat Mat Sto Slots Evolved 4 | . . . 2 2 . Power . | . . . . . . Propulsion 2 | . . . 1 1 . Utility 1 | . . . 1 . . Weapon 1 | . . . . 1 . Parts Attached 57 | 7 . . 7 20 23 Power 9 | 1 . . 2 2 4 Engine 5 | 1 . . 2 1 1 Core 4 | . . . . 1 3 Reactor . | . . . . . . Propulsion 18 | 2 . . 2 6 8 Treads 14 | . . . 1 6 7 Leg 3 | 2 . . 1 . . Wheel 1 | . . . . . 1 Hover . | . . . . . . Flight . | . . . . . . Utility 11 | 2 . . 2 4 3 Device 4 | 1 . . . 2 1 Storage 3 | 1 . . 1 1 . Processor . | . . . . . . Hackware . | . . . . . . Protection 4 | . . . 1 1 2 Artifact . | . . . . . . Weapon 19 | 2 . . 1 8 8 Energy Gun 5 | 1 . . . 2 2 Energy Cannon 2 | . . . . 2 . Ballistic Gun 4 | 1 . . 1 . 2 Ballistic Cannon 1 | . . . . . 1 Launcher 6 | . . . . 4 2 Special Weapon . | . . . . . . Impact Weapon . | . . . . . . Slashing Weapon . | . . . . . . Piercing Weapon . | . . . . . . Special Melee Weapon 1 | . . . . . 1 Unidentified Prototypes 3 | . . . . 2 1 Parts Lost 25 | . . . 1 4 20 Power 2 | . . . . . 2 Propulsion 10 | . . . . 1 9 Utility 4 | . . . 1 . 3 Weapon 9 | . . . . 3 6 Highest Loss Streak 14 | . . . 1 2 14 To Critical Strikes . | . . . . . . Average Backups 13 | 4 6 7 9 14 14 Power 2 | . 1 1 1 2 2 Propulsion 4 | 2 4 5 4 4 3 Utility 2 | . . . 1 2 4 Weapon 4 | . 1 1 1 5 4 Tool/Special . | . . . . . . Unused Backups 7 | . . . . . 7 Power 1 | . . . . . 1 Propulsion 1 | . . . . . 1 Utility 4 | . . . . . 4 Weapon 1 | . . . . . 1 Tool/Special . | . . . . . . Average Slot Usage (%) 97 | . 100 100 91 98 98 Engine 4 | . 14 14 11 3 . Core 5 | . . . . 5 7 Treads 28 | . . . 2 34 35 Leg 5 | . 28 28 30 1 . Device 10 | . 14 14 11 11 8 Storage 10 | . 14 14 11 10 9 Protection 5 | . . . 3 5 8 Energy Gun 8 | . 14 14 11 5 8 Energy Cannon 8 | . . . . 13 7 Ballistic Gun 6 | . 14 14 11 3 6 Ballistic Cannon 1 | . . . . . 3 Launcher 1 | . . . . 4 . Peak Build Rating 29 | 7 7 7 11 28 29 Average Rating 21 | 4 7 7 9 24 26 On Entrance 9 | . 7 7 7 10 27 Naked Turns . | . . . . . . Heaviest Build 43 | 15 15 15 35 41 43 Greatest Support 89 | 20 20 20 30 89 87 Greatest Overweight (x) 6 | 4 . . 1 1 6 Average Overweight (x) . | 1 . . . . . Largest Inventory Capacity 15 | 8 8 8 15 15 15 Average Capacity 14 | 7 8 8 14 15 15 Most Carried 15 | 6 7 7 15 15 15 Average Carried 13 | 4 6 7 10 14 14 Final Capacity 15 | 8 8 8 15 15 15 Final Carried 15 | 6 7 7 15 15 11 Class Distribution -------------------- 34% | Tank 23% | Mutant 20% | Scavenger-Tank 12% | Skirmisher 3% | Commander-Tank 3% | Gunner Dominant Class ---------------- Mutant | -10/Materials Mutant | -10/Mines Mutant | -9/Materials Tank | -8/Materials Scavenger-Tank | -8/Storage Resources | -11 -10 -10 -9 -8 -8 ----------- Run | Yrd Mat Min Mat Mat Sto Matter Collected 1758 | 155 . 20 272 511 800 Remotely . | . . . . . . Salvage Created 2409 | 48 . 38 221 752 1350 Parts 153 | 6 . 4 18 48 77 Haulers Intercepted 4 | . . . . 1 3 Recyclers Shooed 3 | . . . . . 3 Parts Field Recycled . | . . . . . . Retrieved Matter . | . . . . . . Parts Self-Destructed . | . . . . . . Prevented . | . . . . . . Kills | -11 -10 -10 -9 -8 -8 ------- Run | Yrd Mat Min Mat Mat Sto Combat Hostiles Destroyed 50 | . . 2 6 21 21 Guns 20 | . . 2 6 2 10 Cannons 15 | . . . . 5 10 AOE 13 | . . . . 12 1 Classes Destroyed 11 | 1 . 1 2 5 2 Worker 5 | . . . 1 2 2 Builder 4 | . . . . 2 2 Tunneler 2 | 2 . . . . . Hauler 4 | . . . . 1 3 Recycler 3 | . . . . . 3 Operator 1 | . . . . . 1 Watcher 3 | . . . . 1 2 Swarmer 14 | . . 2 3 9 . Grunt 19 | . . . . 7 12 Duelist 4 | . . . . 1 3 Sentry 13 | . . . 3 4 6 Best Kill Streak 5 | 2 . 2 3 5 5 Combat Bots Only 4 | . . 2 2 4 3 Max Kills in Single Turn 5 | 1 . 1 1 5 4 Gunslinging . | . . . . . . Exploded 3 | . . . . 3 1 Melee . | . . . . . . Uniques/NPCs Destroyed . | . . . . . . Combat | -11 -10 -10 -9 -8 -8 -------- Run | Yrd Mat Min Mat Mat Sto Hostile Shots Fired 302 | . . 6 45 83 168 Missed 65 | . . . 6 27 32 Hits 237 | . . 6 39 56 136 Melee 8 | . . . . 2 6 Projectile 229 | . . 6 39 54 130 AOE 30 | . . . . 1 29 Critical Strikes 12 | . . . 3 1 8 Damage Taken 4645 | . . 47 455 1239 2904 Core 585 | . . 9 14 116 446 Absorbed by Shields . | . . . . . . Ignored by Resistances 12 | . . . . 12 . Regen/Repaired (Parts) 405 | . . . . . 405 Core Remaining (%) 97 | 100 . 96 96 . . Volleys Fired 159 | 6 . 3 19 56 75 Largest 3 | 2 . 2 2 3 3 Hottest 185 | 70 . 70 70 185 185 Shots Fired 377 | 12 . 6 38 111 210 Gun 216 | 12 . 6 38 31 129 Cannon 136 | . . . . 57 79 Launcher 25 | . . . . 23 2 Special . | . . . . . . Kinetic 138 | 6 . 3 19 13 97 Thermal 214 | 6 . 3 19 75 111 Explosive 18 | . . . . 18 . Electromagnetic 7 | . . . . 5 2 Robot Hit Streak 26 | 2 . 2 16 17 26 Robot Miss Streak 6 | 4 . 3 2 2 6 Penetration Max . | . . . . . . Secondary Targets . | . . . . . . Shots Hit Robots 236 | 4 . 2 25 63 142 Core Hits 142 | 2 . 2 10 44 84 Critical Kills . | . . . . . . Critical Parts Destroyed 1 | . . . . . 1 Critical Strikes 7 | . . . 1 3 3 Burn 6 | . . . 1 3 2 Destroy 1 | . . . . . 1 Melee Attacks . | . . . . . . Impact . | . . . . . . Slashing . | . . . . . . Piercing . | . . . . . . Sneak Attacks . | . . . . . . Combat Hostiles . | . . . . . . Follow-up Attacks . | . . . . . . Damage Inflicted 5094 | 47 . 30 316 1887 2814 Guns 2030 | 47 . 30 316 307 1330 Cannons 1713 | . . . . 553 1160 Explosions 1328 | . . . . 1021 307 Melee . | . . . . . . Ramming 23 | . . . . 6 17 Kinetic 1400 | 22 . 16 136 103 1123 Thermal 2407 | 25 . 14 180 796 1392 Explosive 800 | . . . . 800 . Electromagnetic 464 | . . . . 182 282 Impact . | . . . . . . Slashing . | . . . . . . Piercing . | . . . . . . Highest Corruption 4 | . . . . 4 4 Average Corruption 4 | . . . . 4 4 Corruption Purged . | . . . . . . Corruption Blocked . | . . . . . . Effects 63 | . . . . 22 41 Message Errors 10 | . . . . 3 7 Matter Fused 19 | . . . . 8 11 Heat Flow Errors 4 | . . . . 1 3 Energy Discharges 6 | . . . . 1 5 Parts Rejected 2 | . . . . . 2 Data Loss (minor) 6 | . . . . 3 3 Data Loss (major) 4 | . . . . 1 3 Misfires 2 | . . . . 1 1 Alerts 7 | . . . . 3 4 Weapon Failures 3 | . . . . 1 2 Overload Shots . | . . . . . . Overflow Damage 83 | . . . . 55 28 Projectiles 10 | . . . . . 10 Explosions 73 | . . . . 55 18 Melee . | . . . . . . Knockbacks 23 | . . . . . 23 Impact . | . . . . . . Kinetic 22 | . . . . . 22 Secondary 1 | . . . . . 1 Self-Inflicted Damage 252 | . . . . 236 16 Shots 10 | . . . . 9 1 Rammed 4 | . . . . 1 3 Targets Rammed 4 | . . . . 1 3 Kicked . | . . . . . . Crushed . | . . . . . . Highest Temperature 475 | 45 . 27 156 333 475 Average Temperature 101 | 20 . 14 49 87 123 Received Heat Transfer 1605 | . . . 162 426 1017 Effects 11 | . . . . 4 7 Shutdowns 2 | . . . . . 2 Energy Bleed 4 | . . . . 3 1 Interference 3 | . . . . . 3 Short Circuit 1 | . . . . 1 . Damage (minor) 1 | . . . . . 1 Siege Activations . | . . . . . . Martial Activations . | . . . . . . Shielding Activations . | . . . . . . Robots Disrupted . | . . . . . . Combat Hostiles . | . . . . . . Robots Corrupted . | . . . . . . Combat Hostiles . | . . . . . . Parts Fried . | . . . . . . Impact Corruptions . | . . . . . . Robots Melted 2 | . . . . 2 . Combat Hostiles 2 | . . . . 2 . Parts Melted 9 | . . . 1 6 2 Heat Transferred 5650 | 74 . 37 592 1900 3047 Parts Sabotaged . | . . . . . . Parts Stolen . | . . . . . . Parts Stripped . | . . . . . . Power Chain Reactions 2 | . . . . 1 1 Alert | -11 -10 -10 -9 -8 -8 ------- Run | Yrd Mat Min Mat Mat Sto Maximum Alert Level 1 | . . . . 1 1 Low Security (%) 91 | 100 100 100 100 82 95 Level 1 8 | . . . . 17 4 Level 2 . | . . . . . . Level 3 . | . . . . . . Level 4 . | . . . . . . Level 5 . | . . . . . . High Security . | . . . . . . Max Security . | . . . . . . Peak Influence 325 | 10 6 55 86 250 325 Initial 97 | . . . 17 26 97 Average 85 | 1 . 9 34 111 91 Influence Increases 2008 | 10 6 55 202 775 960 Destroy 0b10 Robot/C 1120 | . . 40 120 420 540 Destroy 0b10 Robot/NC 115 | 10 . . 5 30 70 Destroy Leader 304 | . . . 40 104 160 Allied During Kill 115 | . . . . . 115 Successful Hack 26 | . 6 . 6 . 14 Disable Machine 90 | . . . . 75 15 Destroy Structure 118 | . . . 1 101 16 Lose Combat Pursuer 120 | . . 15 30 45 30 Influence Decreases 1874 | 10 6 10 183 608 1057 Entered New Map 200 | . . . 28 38 134 Time Decay 1213 | 10 6 10 145 530 512 Lost Part 221 | . . . 10 40 171 Lost Ally 240 | . . . . . 240 Squads Dispatched 12 | . . . . 5 7 Investigation 3 | . . . . . 3 Extermination . | . . . . . . Reinforcement 4 | . . . . 2 2 Assault 2 | . . . . . 2 Garrison 3 | . . . . 3 . Intercept . | . . . . . . Searches Triggered . | . . . . . . Construction Impeded . | . . . . . . Haulers Reinforced . | . . . . . . Active Scanning Responses . | . . . . . . Cargo Convoy Interrupts . | . . . . . . Stealth | -11 -10 -10 -9 -8 -8 --------- Run | Yrd Mat Min Mat Mat Sto Distress Signals 4 | . . . . 3 1 Communications Jammed . | . . . . . . Distress Signals . | . . . . . . Times Spotted 100 | . . 3 9 36 52 Peak Tracking Total 13 | . . 3 5 5 13 Tactical Retreats 5 | . . 1 1 2 1 Traps | -11 -10 -10 -9 -8 -8 ------- Run | Yrd Mat Min Mat Mat Sto Traps Triggered 4 | . . . . 2 2 Indirectly . | . . . . . . Trap Hack Attempts . | . . . . . . Triggered . | . . . . . . Disarmed . | . . . . . . Reprogrammed . | . . . . . . Reused . | . . . . . . Traps Extracted . | . . . . . . Installed . | . . . . . . Triggered . | . . . . . . Machines | -11 -10 -10 -9 -8 -8 ---------- Run | Yrd Mat Min Mat Mat Sto Machines Disabled 6 | . . . . 5 1 Max in Single Turn 2 | . . . . 2 1 Garrison Access 1 | . . . . . 1 Machines Repaired . | . . . . . . Machines Dismantled . | . . . . . . Machines Sabotaged . | . . . . . . Overloaded Fab Kills . | . . . . . . Hacking | -11 -10 -10 -9 -8 -8 --------- Run | Yrd Mat Min Mat Mat Sto Machines Accessed 13 | . 4 . 2 1 6 Terminals 10 | . 3 . 2 1 4 Fabricators . | . . . . . . Repair Stations 1 | . . . . . 1 Recycling Units 1 | . 1 . . . . Scanalyzers . | . . . . . . Garrison Access 1 | . . . . . 1 Total Hacks 29 | . 7 . 3 3 16 Successful 19 | . 4 . 3 1 11 Failed 10 | . 3 . . 2 5 Catastrophic 2 | . . . . 1 1 Database Lockouts . | . . . . . . Manual 7 | . 4 . 2 . 1 Terminals 17 | . 5 . 3 3 6 Fabricators . | . . . . . . Repair Stations 9 | . . . . . 9 Recycling Units 2 | . 2 . . . . Scanalyzers . | . . . . . . Garrison Access 1 | . . . . . 1 Terminal Hacks 10 | . 3 . 3 1 3 Robot Analysis 5 | . 2 . 2 . 1 Prototype ID Bank 1 | . . . 1 . . Open Door 1 | . . . . . 1 Alert Level 1 | . . . . . 1 Locate Traps 2 | . 1 . . 1 . Fabricator Hacks . | . . . . . . Repair Station Hacks 7 | . . . . . 7 Scan Component 4 | . . . . . 4 Repair 3 | . . . . . 3 Recycling Unit Hacks 1 | . 1 . . . . Retrieve Matter 1 | . 1 . . . . Scanalyzer . | . . . . . . Garrison Access Hacks 1 | . . . . . 1 Seal Access 1 | . . . . . 1 Unauthorized Hacks . | . . . . . . Terminals . | . . . . . . Fabricators . | . . . . . . Repair Stations . | . . . . . . Recycling Units . | . . . . . . Scanalyzers . | . . . . . . Garrison Access . | . . . . . . Data Cores Recovered . | . . . . . . Used . | . . . . . . Hacking Detections 6 | . 2 . 1 1 2 Full Trace Events 1 | . . . . . 1 Feedback Events . | . . . . . . Feedback Blocked . | . . . . . . Robot Schematics Acquired . | . . . . . . Robots Built . | . . . . . . Authchips . | . . . . . . Time . | . . . . . . Total Robot Build Rating . | . . . . . . Part Schematics Acquired . | . . . . . . Parts Built . | . . . . . . Authchips . | . . . . . . Time . | . . . . . . Total Part Build Rating . | . . . . . . Parts Repaired 3 | . . . . . 3 Time 129 | . . . . . 129 Parts Recycled . | . . . . . . Recycled Matter . | . . . . . . Retrieved Matter . | . . . . . . Retrieved Components . | . . . . . . Parts Scanalyzed . | . . . . . . Part Schematics Acquired . | . . . . . . Parts Damaged . | . . . . . . Bothacking | -11 -10 -10 -9 -8 -8 ------------ Run | Yrd Mat Min Mat Mat Sto Used RIF Installer . | . . . . . . Robots Hacked . | . . . . . . Non-combat . | . . . . . . Combat . | . . . . . . Robot Hacks Applied . | . . . . . . Relay Couplers Released . | . . . . . . Fabnet Peak Effective % . | . . . . . . Robots Rewired . | . . . . . . Allies Hacked . | . . . . . . Hacks Repelled . | . . . . . . Allies | -11 -10 -10 -9 -8 -8 -------- Run | Yrd Mat Min Mat Mat Sto Total Allies 12 | . . . . . 12 Largest Group 12 | . . . . . 12 Highest-Rated Group 235 | . . . . . 235 Highest-Rated Ally 31 | . . . . . 31 Total Orders . | . . . . . . Ally Attacks 59 | . . . . . 59 Total Damage 742 | . . . . . 742 Kills 7 | . . . . . 7 Allies Corrupted . | . . . . . . Allies Melted . | . . . . . . Intel | -11 -10 -10 -9 -8 -8 ------- Run | Yrd Mat Min Mat Mat Sto Active Infowar (turns) 1350 | 15 169 87 412 667 . Sensors 484 | . . . . 484 . Seismic 866 | 15 169 87 412 183 . Robot Analysis Total 5 | . 2 . 2 . 1 Derelict Logs Recovered 1 | . . 1 . . . Drone Launches . | . . . . . . Drone Recoveries . | . . . . . . Exploration | -11 -10 -10 -9 -8 -8 ------------- Run | Yrd Mat Min Mat Mat Sto Turns Passed 3863 | 89 169 87 412 1543 1563 Spaces Moved 1853 | 33 134 66 209 719 692 Core 17 | 16 . . . . 1 Treads 1409 | . . . 27 703 679 Legs 415 | 17 134 66 182 16 . Wheels 12 | . . . . . 12 Hover . | . . . . . . Flight . | . . . . . . Fastest Speed 50 | 50 120 120 120 148 115 Average Speed 148 | 166 120 120 157 149 151 Slowest Speed 350 | 250 120 120 240 190 350 Overloaded Moves . | . . . . . . Propulsion Burnouts . | . . . . . . Robots Hopped . | . . . . . . Potential Cave-ins . | . . . . . . Cave-ins Triggered . | . . . . . . Exploration Rate (%) 30 | 4 20 23 21 38 77 Regions Visited 5 Branch Regions 2 Pre-discovered Areas . | . . . . . . Known Exits Taken . | . . . . . . Unknown Exits Taken 5 | 1 1 1 1 1 . Scrap Searched . | . . . . . . Spaces Dug 2 | . . . . 2 . Terrain Destroyed 112 | . . . . 104 8 Melee . | . . . . . . Projectile 8 | . . . . 4 4 AOE 104 | . . . . 100 4 Terrain Rammed . | . . . . . . Walls Destroyed . | . . . . . . Machines Disabled . | . . . . . . Actions | -11 -10 -10 -9 -8 -8 --------- Run | Yrd Mat Min Mat Mat Sto Total 2648 | 51 142 68 252 1086 1049 Wait 484 | . 8 . 10 252 214 Move 1848 | 32 133 65 208 718 692 Hop . | . . . . . . Pick Up 40 | 6 1 . 6 11 16 Fast Attach 15 | 7 . . 2 5 1 Attach 18 | . . . 1 5 12 Detach 1 | . . . 1 . . Swap 48 | . . . 5 25 18 Drop 30 | . . . . 13 17 Fire 159 | 6 . 3 19 56 75 Melee . | . . . . . . Ram . | . . . . . . Kick . | . . . . . . Crush 4 | . . . . 1 3 Escape Stasis . | . . . . . . Rewire 1 | . . . . . 1 Trap . | . . . . . . Miscellaneous . | . . . . . . Route ------- -11/Scrapyard -10/Materials -10/Mines -9/Materials -8/Materials (discovered 2 exits: *Sto x2) -8/Storage History --------- Turn | Location | Event 14 | -11/Scrapyard | Discovered new exit (range 16) 90 | -11/Scrapyard | Entered Materials 204 | -10/Materials | Discovered new exit (range 9) 259 | -10/Materials | Entered Mines 297 | -10/Mines | Learned Materials stockpile data 305 | -10/Mines | Build established: Mutant 333 | -10/Mines | Discovered new exit (range 9) 346 | -10/Mines | Entered Materials 346 | -9/Materials | Evolved 2 slots: Propulsion x1, Utility x1 657 | -9/Materials | Discovered new exit (range 16) 758 | -9/Materials | Entered another Materials area 758 | -8/Materials | Evolved 2 slots: Propulsion x1, Weapon x1 760 | -8/Materials | Discovered new exit (range 14) 1226 | -8/Materials | Build established: Tank 1314 | -8/Materials | Garrison activated, responded to threat 2012 | -8/Materials | Build established: Skirmisher 2281 | -8/Materials | Discovered new exit (range 9) 2301 | -8/Materials | Entered Storage 2507 | -8/Storage | Repaired Broken Adv. Treads 2546 | -8/Storage | Repaired Adv. Treads 2586 | -8/Storage | Repaired Insulated Plating 3108 | -8/Storage | Build established: Tank 3196 | -8/Storage | Lost 3 parts (1n2w) 3511 | -8/Storage | Build established: Scavenger-Tank 3696 | -8/Storage | Assisted by bots powering up and referring to "LRC-V3" 3722 | -8/Storage | Met a pair of Derelict thieves 3846 | -8/Storage | Core integrity fell below 50% 3860 | -8/Storage | Core integrity fell below 20% 3863 | -8/Storage | Lost 12 allies 3864 | -8/Storage | Destroyed by D-53 Grenadier with Mini Grenade Launcher Last Messages --------------- 03842_ Destroyed Shock Absorption System. 03843_ U-05 Engineer lays Concrete. 03843_ D-53 Grenadier destroyed. 03844_ The unstable cave ceiling collapses. 03844_ Lgt. Treads destroyed. 03844_ U-05 Engineer builds a Wall. 03845_ The unstable cave ceiling collapses. 03845_ Hrd. Light Armor Plating destroyed. 03846_ G-47 Trooper destroyed. 03847_ Adv. EMP Blaster destroyed. 03847_ D-53 Grenadier destroyed. 03847_ Lgt. Treads destroyed. 03847_ Lgt. Nuclear Core destroyed. 03848_ Particle Gun destroyed. 03849_ U-05 Engineer builds a Wall. 03850_ G-47 Trooper destroyed. 03852_ The unstable cave ceiling collapses. 03852_ Acquired 7 matter. 03853_ The unstable cave ceiling collapses. 03861_ Com. Wheel destroyed. Map ----- +----------------------------------------------------+ | # ?????????############%# #?????????????? | | + ?????????????????####*## #?????????????? | | # T ?????????????????# # ###?????????????? | | ## ?????????????????# % #???????????????? | | ?##+##?????????????????# # ##??????????????? | | ????? #???????????????## [ #######????????? | | ? ?????????????#### #!] #????????? | | ????????????????## * # " ]]#????????? | | ?????????????????## ## ]#????????? | | ?????????????????# # " #????????? | | ?????????????????# = # ]] #????????? | | ?????????????????# # !# ## ] ]#????????? | | ?????????????????# # # !=#?######????????? | | ?????????????????# =* #########????????? | | ?????????????????# # =gg% ?????????? | | ?????????????????### %=[#? ""? ?????????? | | ??????????????????# dd[# """ #???????? | | ???????????####+####### #%= # """ #???????? | | ?????????? " % = #???????? | | ?????????? "%" ; """ #???????? | | ?????????? " ; """ ????????? | | ???????????? ######### ;# """ ?????????? | | ????????????????????## # ????????? | | ????????????????????# ###"T"###????????? | | ??????????? ???????# "#?"""#??????????? | | ??????????? ???????# @ T#??##???????????? | | ??????????? ???????# [! "#???????????????? | | ??????????? ???????## ![ ##???????????????? | | ##????????? ????????# #????????????????? | | #????????? ????????# #????????????????? | | #????????? +???????# #????????????????? | | #######+###+###?????##########????????????????? | | # #???????????????????????????????? | | # #???####???????????#####????????? | | # #???#T"######??????#"""#????????? | | # ##### "#############"T"###??????? | | # + +% ] #??????? | | # #%% % #]=! #??????? | | ################ #%!! ##?????? | | !! ^ #* #?????? | | ! = + """ """ ##?????? | | !% ^ %%# """ """ #??????? | | #####+##+################+###+# """ """ #??????? | | #??????# %# #??????? | | ####???# % #####"Y"###??????? | | """#???# """ """ #???#"""#????????? | | " " *** R"#???# """ """ #???#####????????? | | "R" ***"""#??# """ """ #????????????????? | | """ ***####??## #????????????????? | | #?????# #????????????????? | +----------------------------------------------------+ Best States ------------- Heat Dissipation 45 Energy Generation 14 Energy Capacity 265 Matter Stores 300 Matter Capacity 500 Sight Range 16 Robot Scan Range 15 Terrain Scan Density 10 Armor Coverage 150 Resistance: EM 15 Evasion (%) 55 Recoil Reduction 4 Item Schematics ----------------- None Robot Schematics ------------------ None Fabricated ------------ Nothing Repaired ---------- Adv. Treads | 18% | -8/Storage | Broken Adv. Treads | 13% | -8/Storage Insulated Plating | 1% | -8/Storage Alien Tech Used ----------------- None Achievements -------------- Maybe Next Time I'll Detach My Launcher The More The Merrier Challenges ------------ None Game ------ Seed LobotomyReactiveInitializer Manual? 0 Play Time 00:39:40 Cumulative 32.3 hours Start 2025.10.10 @ 09:19:13 End 2025.10.10 @ 09:57:44 Sessions 1 Manual Loads 0 Difficulty Rogue Special Mode None Game No. 31 Rogue 31 Adventurer 0 Explorer 0 Win Type - Total 0 Types 0/0/0/0/0/0/0/0/0/0 Lore% 13 Gallery% 29 Achievement% 19 Wizard Run 0 Options --------- Layout 0 ASCII 0 Keyboard 1 Movement Numpad Keybinds 0 Fullscreen 1 Font 24/Smallcaps Map View 76x50 Zoom Use 0% Tactical HUD 1 Map Filters NONE Filters NONE Steam 1 RUN: 61b66397-e40a-453e-a373-cfa8ad6f23ed